bitfinex/quotes_ETHUSD_20251124
["timestamp","ask_amount","ask_price","bid_price","bid_amount"]
[1763977978176,0.4968,2806.2,2805.5,0.1]
[1763977978612,0.6952,2806.0,2805.5,0.1]
[1763977978811,0.6952,2806.0,2804.5,0.405504]
[1763977978812,0.1423,2805.6,2805.1,0.405504]
[1763977979013,0.4968,2805.5,2805.0,0.229]
[1763977979216,0.1423,2805.1,2805.0,0.229]
[1763977979518,0.1423,2805.1,2804.7,0.5617]
[1763977980410,0.1423,2805.1,2804.8,0.1]
[1763977980624,0.1423,2805.1,2804.8,0.53562388]
[1763977980816,0.1984,2806.0,2804.6,0.7223]
[1763977980817,0.0905,2804.9,2804.6,0.7223]
[1763977981020,0.405504,2805.9,2804.7,0.1]
[1763977981021,0.4968,2805.3,2804.7,0.1]
[1763977981220,0.4968,2805.3,2804.6,0.229]
[1763977981522,0.4968,2805.3,2804.7,0.4256373]
[1763977981742,0.4968,2805.3,2804.7,0.5256373]
[1763977982035,0.4968,2805.3,2804.6,0.329]
[1763977982383,0.4968,2805.3,2804.6,0.229]
[1763977982601,0.405504,2805.9,2804.6,0.229]
[1763977982818,0.4968,2805.4,2804.7,0.1]
[1763977983021,0.4968,2805.4,2804.4,0.4933]
[1763977983221,0.1423,2804.5,2804.1,0.229]
[1763977983388,0.1423,2804.5,2804.1,0.329]
[1763977983588,0.1423,2804.5,2804.2,0.1]
[1763977983825,0.1423,2804.5,2804.0,0.6799]
[1763977984029,1.31249664,2805.5,2804.0,0.7448]
[1763977984231,0.1984,2804.9,2804.3,0.1]
[1763977984533,10.17,2805.8,2804.8,0.1]
[1763977984826,0.4968,2805.5,2804.8,0.5829]
[1763977986739,0.4968,2805.5,2804.8,1.0446]
[1763977986939,0.4968,2805.5,2804.9,0.1]
[1763977987235,0.1984,2806.0,2804.9,0.1]
[1763977987433,0.1984,2806.0,2805.1,0.1]
[1763977987928,0.1984,2806.0,2805.2,0.1]
[1763977988335,0.1984,2806.0,2805.4,0.1]
[1763977988534,0.1984,2806.0,2805.2,0.1]
[1763977988922,0.4654,2805.3,2805.0,0.229]
[1763977989103,0.1984,2806.0,2804.6,0.1]
[1763977989104,0.4624,2805.1,2804.6,0.1]
[1763977989438,0.4624,2805.1,2804.7,0.1]
[1763977989807,0.4624,2805.1,2804.8,0.1]
[1763977990002,0.4624,2805.1,2804.5,4.20018278]
[1763977990235,0.4624,2805.1,2804.6,0.56720828]
[1763977990406,0.4624,2805.1,2804.7,0.1]
[1763977990600,0.4624,2805.1,2804.6,0.1]
[1763977990837,0.4624,2805.1,2804.7,0.1]
[1763977991234,0.405504,2805.9,2804.8,0.4719]
[1763977991436,0.4865,2805.6,2804.8,0.1]
[1763977991735,0.4865,2805.6,2804.5,4.26657323]
[1763977991934,0.4865,2805.6,2804.9,0.1]
[1763977992109,0.892004,2805.9,2804.9,0.1]
[1763977992306,0.32395829,2805.8,2804.7,7.13088742]
[1763977992509,0.4865,2805.8,2805.1,0.1]
[1763977992707,0.4865,2805.8,2804.7,1.37889264]
[1763977993039,0.4865,2805.8,2804.9,0.1]
[1763977993335,0.324786,2805.7,2804.9,0.1]
[1763977993536,0.4865,2805.8,2805.0,0.1]
[1763977993737,0.81128318,2805.7,2805.0,0.1]
[1763977993940,0.4865,2805.7,2804.7,1.37889264]
[1763977994142,0.4865,2805.7,2804.8,0.49444588]
[1763977994444,0.36982661,2805.6,2804.7,0.1]
[1763977994624,0.32527287,2805.5,2804.8,0.1]
[1763977994818,0.4865,2805.5,2804.8,0.1]
[1763977995527,0.4865,2805.5,2804.5,4.26658151]
[1763977995528,0.3496,2804.9,2804.5,0.229]
[1763977995707,0.3496,2804.9,2804.4,0.4624]
[1763977995907,0.8122821,2804.8,2804.2,0.1]
[1763977996111,0.3258038,2804.7,2804.1,0.5719]
[1763977996311,0.32638393,2804.6,2804.1,0.97412141]
[1763977996525,0.4865,2804.8,2804.1,1.07412141]
[1763977996743,0.3263799,2804.7,2804.3,0.1]
[1763977997044,0.3263799,2804.6,2804.1,0.50222141]
[1763977997269,0.4865,2804.8,2804.0,3.74940809]
[1763977997450,0.3268463,2804.7,2804.5,0.001]
[1763977997617,0.3268463,2804.6,2804.5,0.001]
[1763977997813,0.1522,2804.6,2804.5,0.001]
[1763978000137,0.4791283,2804.6,2804.5,0.001]
[1763978000341,0.1522,2804.6,2804.5,0.001]
[1763978000550,0.1522,2804.6,2804.0,0.1831]
[1763978000551,0.32703358,2804.6,2803.0,3.764]
[1763978000717,0.32703358,2804.6,2801.2,0.1884]
[1763978000718,6.80063844,2803.1,2801.2,0.1884]
[1763978000922,0.405504,2802.3,2801.2,0.1884]
[1763978001134,8.69292108,2803.0,2801.4,0.1]
[1763978001135,0.32679149,2802.2,2801.4,0.1]
[1763978001329,0.23,2802.5,2801.4,5.61178]
[1763978001534,0.32553876,2802.4,2801.8,0.1]
[1763978001742,0.32552263,2802.3,2801.5,0.4719]
[1763978002062,0.32550878,2802.2,2801.3,0.1]
[1763978002243,0.23,2802.4,2801.3,0.1]
[1763978002447,0.23,2802.4,2801.3,0.5719]
[1763978002448,0.3511,2802.4,2801.3,0.5719]
[1763978002641,0.1211,2802.3,2801.2,0.1884]
[1763978003251,0.405504,2802.2,2801.2,0.1884]
[1763978003469,0.90699264,2802.1,2801.0,0.001]
[1763978003765,0.90699264,2802.1,2801.1,0.1884]
[1763978003766,1.02920351,2802.0,2801.1,0.1884]
[1763978003932,1.15030351,2802.0,2801.1,0.1884]
[1763978004138,0.1211,2801.9,2801.0,0.001]
[1763978004533,0.23,2801.8,2801.1,0.1884]
[1763978006671,0.23,2801.7,2801.1,0.2884]
[1763978006876,0.23,2801.7,2801.1,0.7603]
[1763978008038,0.1211,2802.5,2801.6,0.4722]
[1763978008271,0.23,2802.4,2801.6,0.4722]
[1763978008776,0.23,2802.3,2801.6,0.4722]
[1763978009580,0.23,2802.2,2801.6,0.4722]
[1763978009778,0.1211,2802.5,2801.6,0.4722]
[1763978010083,0.23,2802.1,2801.6,0.4722]
[1763978010681,0.1203,2802.5,2801.6,0.4722]
[1763978010857,0.23,2802.4,2801.1,0.7603]
[1763978011249,0.23,2802.4,2801.1,0.2884]
[1763978011451,0.23,2802.4,2801.2,0.4719]
[1763978012150,0.23,2802.3,2801.2,0.4719]
[1763978012846,0.3503,2802.2,2801.2,0.4719]
[1763978013470,0.23,2802.1,2801.2,0.4719]
[1763978014980,0.1203,2802.2,2801.2,0.4719]
[1763978015286,0.23,2802.0,2801.2,0.4719]
[1763978016798,0.90699264,2802.9,2801.2,0.4719]
[1763978016982,0.1203,2802.7,2801.9,0.4819]
[1763978017673,0.23,2802.6,2801.9,0.4819]
[1763978018458,0.1203,2802.7,2801.9,0.4819]
[1763978018804,0.23,2802.6,2801.9,0.9676]
[1763978018962,0.23,2802.6,2801.9,1.0676]
[1763978019884,0.1223,2803.0,2802.0,0.4857]
[1763978020076,0.23,2802.5,2802.1,0.1]
[1763978020278,0.23,2802.5,2802.1,0.2844]
[1763978020479,0.23,2802.5,2802.2,0.4857]
[1763978021391,0.1223,2803.0,2802.2,0.4857]
[1763978021602,0.23,2802.9,2802.2,0.4857]
[1763978022585,0.04459825,2802.8,2802.2,0.4857]
[1763978023208,0.04459825,2802.8,2802.1,0.1844]
[1763978024006,0.23,2802.9,2802.1,0.1844]
[1763978024330,0.002,2803.0,2802.2,0.4857]
[1763978024530,0.23,2802.9,2802.2,0.5857]
[1763978025386,0.23,2802.8,2802.2,0.5857]
[1763978025778,0.002,2803.0,2802.7,0.4819]
[1763978025980,0.231,2803.0,2802.7,0.4819]
[1763978026213,0.002,2803.0,2802.7,0.9676]
[1763978027380,0.002,2803.0,2802.7,0.4819]
[1763978027581,0.002,2803.0,2802.7,0.9676]
[1763978027980,0.002,2803.0,2802.7,0.4819]
[1763978028605,0.002,2803.0,2802.4,0.4857]
[1763978028783,0.1203,2802.8,2802.4,0.4857]
[1763978029292,0.231,2803.0,2802.4,0.4857]
[1763978029490,0.231,2803.0,2802.3,0.1]
[1763978029690,0.3513,2803.0,2802.2,0.4857]
[1763978029998,0.231,2803.0,2802.2,0.4857]
[1763978030214,0.231,2803.0,2802.3,0.1]
[1763978030601,0.231,2803.0,2802.3,0.565]
[1763978031125,0.229,2802.9,2802.3,0.565]
[1763978032203,0.229,2802.9,2802.3,0.465]
[1763978032617,0.229,2802.8,2802.3,0.465]
[1763978034428,0.2282,2802.8,2802.3,0.465]
[1763978037003,0.002,2802.9,2802.3,0.465]
[1763978037205,0.229,2802.8,2802.3,0.465]
[1763978040352,0.3493,2802.8,2802.2,0.1]
[1763978040657,0.1203,2802.3,2801.3,0.1]
[1763978040837,0.04659666,2802.9,2801.3,0.465]
[1763978040838,0.4696,2802.2,2801.3,0.465]
[1763978041019,0.229,2802.1,2801.3,0.465]
[1763978041208,0.3493,2802.1,2801.2,0.465]
[1763978041605,0.229,2802.1,2801.2,0.465]
[1763978041822,0.1203,2802.3,2801.2,0.565]
[1763978042016,0.229,2802.0,2801.2,0.565]
[1763978042239,0.229,2802.0,2801.3,0.1]
[1763978042741,0.229,2802.0,2801.3,0.565]
[1763978043237,0.229,2802.0,2801.3,0.465]
[1763978043832,0.3493,2802.0,2801.1,0.1894]
[1763978044020,0.3493,2802.0,2801.1,0.6544]
[1763978044344,0.1203,2801.9,2801.1,0.1894]
[1763978045614,0.1203,2801.9,2801.1,0.7544]
[1763978046014,1.84671071,2802.3,2801.2,0.465]
[1763978046015,0.229,2801.8,2801.2,0.465]
[1763978046831,0.229,2801.8,2801.1,0.2894]
[1763978047163,0.229,2801.8,2801.1,0.1894]
[1763978047659,0.229,2801.8,2801.1,0.001]
[1763978047859,0.1203,2801.7,2801.1,0.001]
[1763978048061,0.3493,2801.8,2801.1,0.1893]
[1763978048943,0.1203,2801.2,2801.1,0.001]
[1763978049141,0.1203,2801.7,2801.1,0.4574]
[1763978049558,0.1203,2801.7,2801.1,0.001]
[1763978049761,0.1203,2801.2,2801.1,0.001]
[1763978050072,0.3493,2801.2,2801.1,0.001]
[1763978050845,0.229,2801.2,2801.1,1.1079]
[1763978051156,0.229,2801.2,2801.1,0.6457]
[1763978051361,0.229,2801.3,2801.1,1.1079]
[1763978051565,0.229,2801.3,2801.1,0.1893]
[1763978051859,0.229,2801.3,2801.1,0.001]
[1763978052227,0.1203,2801.2,2801.1,0.001]
[1763978053768,0.3493,2801.2,2801.1,0.001]
[1763978054140,0.229,2801.2,2801.1,0.001]
[1763978055132,0.179,2801.2,2801.1,0.001]
[1763978055762,0.90699264,2801.9,2801.1,0.001]
[1763978055763,0.90699264,2801.9,2801.1,0.4574]
[1763978056061,1.10795311,2801.8,2801.1,0.4574]
[1763978056244,1.10795311,2801.8,2801.1,0.001]
[1763978056445,0.1203,2801.2,2801.1,0.001]
[1763978057262,0.2406,2801.2,2801.1,0.001]
[1763978057880,0.1203,2801.2,2801.1,0.001]
[1763978058371,0.1195,2801.2,2801.1,0.001]
[1763978059538,0.239,2801.2,2801.1,0.001]
[1763978061365,1.31249664,2802.0,2801.1,0.001]
[1763978061553,0.1195,2801.7,2801.1,0.001]
[1763978061755,0.229,2801.6,2801.1,0.001]
[1763978062146,0.04461895,2801.5,2801.1,0.001]
[1763978062551,0.229,2801.4,2801.1,0.6515]
[1763978063187,0.229,2801.4,2801.1,0.1893]
[1763978064165,0.405504,2801.7,2801.1,0.1893]
[1763978064372,0.229,2801.3,2801.1,0.1893]
[1763978065201,0.93202805,2801.9,2801.2,0.4564]
[1763978065506,0.229,2801.8,2801.2,0.4564]
[1763978065878,0.229,2801.7,2801.2,0.4564]
[1763978066369,0.229,2801.7,2801.2,0.9186]
[1763978066974,0.229,2801.7,2801.2,0.4564]
[1763978067491,0.002,2801.3,2801.2,0.4564]
[1763978068001,0.231,2801.3,2801.2,0.4564]
[1763978069404,0.002,2801.3,2801.2,0.4564]
[1763978071411,0.002,2801.3,2801.1,0.001]
[1763978072699,0.002,2801.3,2801.2,0.9186]
[1763978075633,0.1215,2801.3,2801.1,0.001]
[1763978076032,0.002,2801.3,2801.1,0.001]
[1763978076250,0.002,2801.3,2801.2,0.4564]
[1763978078419,0.002,2801.3,2801.2,0.9529]
[1763978079131,0.002,2801.3,2801.2,0.4564]
[1763978079318,0.002,2801.3,2801.1,0.001]
[1763978079505,0.002,2801.3,2801.1,0.4975]
[1763978079833,0.002,2801.3,2801.2,0.4675]
[1763978080516,0.002,2801.3,2801.2,0.964]
[1763978081347,0.002,2801.3,2801.2,0.4675]
[1763978082142,0.0012,2801.3,2801.2,0.4675]
[1763978083026,0.0012,2801.3,2801.2,0.964]
[1763978083817,0.0012,2801.3,2801.2,0.4675]
[1763978084045,0.0012,2801.3,2801.2,0.964]
[1763978084918,0.0012,2801.3,2801.2,6.02171661]
[1763978085249,0.0012,2801.3,2801.2,11.22937952]
[1763978086463,0.0012,2801.3,2801.2,7.65948091]
[1763978086619,0.0012,2801.3,2801.2,11.22937952]
[1763978088181,0.0012,2801.3,2801.2,21.21952752]
[1763978088589,0.0012,2801.3,2801.2,11.22937952]
[1763978088886,0.0012,2801.3,2801.2,13.38755452]
[1763978089085,0.0012,2801.3,2801.2,7.65948091]
[1763978089436,0.0012,2801.3,2801.2,7.80252477]
[1763978089888,0.0012,2801.3,2801.2,11.37242338]
[1763978090086,0.0012,2801.3,2801.2,2.64480816]
[1763978090240,0.0012,2801.3,2801.2,2.74480816]
[1763978091294,0.0012,2801.3,2801.2,6.31470677]
[1763978091483,0.0012,2801.3,2801.2,2.74480816]
[1763978091978,0.0012,2801.3,2801.2,9.46349577]
[1763978092289,0.0012,2801.3,2801.2,14.52121238]
[1763978092584,0.0012,2801.3,2801.2,14.00377538]
[1763978093883,0.0012,2801.3,2801.2,30.71688338]
[1763978094083,0.0012,2801.3,2801.2,26.97471238]
[1763978095362,0.0012,2801.3,2801.2,26.02333438]
[1763978095606,0.0012,2801.3,2801.2,14.99938038]
[1763978095793,0.0012,2801.3,2801.2,14.50845038]
[1763978095962,0.0012,2801.3,2801.2,14.80845038]
[1763978096308,0.0012,2801.3,2801.2,14.21205038]
[1763978096793,0.0012,2801.3,2801.2,16.25940338]
[1763978097199,0.0012,2801.3,2801.2,15.65740338]
[1763978097768,0.0012,2801.3,2801.2,6.31470677]
[1763978097973,0.0012,2801.3,2801.2,2.74480816]
[1763978098374,0.0012,2801.3,2801.2,2.1140365]
[1763978098571,0.0012,2801.3,2801.2,1.5175365]
[1763978098772,0.0012,2801.3,2801.2,1.47449264]
[1763978099292,0.0012,2801.3,2801.2,1.93079264]
[1763978102002,0.0012,2801.3,2801.2,1.47449264]
[1763978102205,0.0012,2801.3,2801.2,1.37449264]
[1763978102368,0.0012,2801.3,2801.2,1.69047803]
[1763978102592,0.0012,2801.3,2801.2,0.90699264]
[1763978103927,0.0012,2801.3,2801.2,1.95769264]
[1763978104289,0.1207,2801.3,2801.2,0.90699264]
[1763978105124,0.0012,2801.3,2801.2,0.90699264]
[1763978105419,0.0012,2801.3,2801.1,0.001]
[1763978105796,0.0004,2801.3,2801.1,0.001]
[1763978106390,0.1195,2801.2,2801.1,0.001]
[1763978108532,0.0004,2801.3,2801.1,0.001]
[1763978108854,0.1195,2801.2,2801.1,0.001]
[1763978109046,0.0004,2801.3,2801.2,0.4734]
[1763978109388,0.0004,2801.3,2801.2,0.9669]
[1763978110154,0.0004,2801.3,2801.2,0.4734]
[1763978110824,0.0004,2801.3,2801.2,0.9669]
[1763978111188,0.0004,2801.3,2801.2,1.0669]
[1763978111597,0.0004,2801.3,2801.2,0.9669]
[1763978112220,0.0004,2801.3,2801.2,1.0669]
[1763978112534,0.0004,2801.3,2801.2,0.9669]
[1763978112837,0.0004,2801.3,2801.2,0.4734]
[1763978115541,0.0004,2801.3,2801.1,0.1901]
[1763978115694,0.0004,2801.3,2801.1,0.101]
[1763978115894,0.0004,2801.3,2801.1,0.001]
[1763978116200,0.1195,2801.2,2801.1,0.001]
[1763978117701,0.0004,2801.3,2801.1,0.001]
[1763978117897,0.1195,2801.2,2801.1,0.001]
[1763978118132,0.0004,2801.3,2801.1,0.001]
[1763978119633,0.1195,2801.2,2801.1,0.001]
[1763978120337,0.0004,2801.3,2801.1,1.0679]
[1763978120633,0.0004,2801.3,2801.1,0.001]
[1763978121447,0.1195,2801.2,2801.1,0.001]
[1763978125259,0.239,2801.2,2801.1,0.001]
[1763978125560,5.54817266,2801.2,2801.1,0.001]
[1763978125856,6.10302993,2801.2,2801.1,0.001]
[1763978126063,7.01002257,2801.2,2801.1,0.001]
[1763978126244,7.01002257,2801.2,2799.3,0.4935]
[1763978126245,1.54749664,2801.1,2799.3,0.4935]
[1763978126430,5.42667266,2800.7,2799.6,0.14314419]
[1763978126636,4.90366866,2800.2,2799.3,0.4935]
[1763978126839,4.90366866,2800.2,2799.3,0.5935]
[1763978126840,0.229,2800.1,2799.3,0.5935]
[1763978127361,0.229,2800.1,2799.3,0.4935]
[1763978127530,0.1165,2800.0,2799.3,0.4935]
[1763978128167,0.1165,2800.0,2799.3,0.5935]
[1763978128351,0.229,2800.0,2799.4,0.1]
[1763978128820,0.229,2800.0,2799.4,0.5935]
[1763978129461,0.2282,2800.0,2799.4,0.5935]
[1763978129644,0.2282,2800.0,2799.2,5.49716866]
[1763978129956,0.1165,2800.1,2799.2,5.49716866]
[1763978130163,0.229,2800.0,2799.3,0.4935]
[1763978130653,0.229,2800.0,2799.4,0.1]
[1763978130855,0.229,2800.0,2799.3,0.5935]
[1763978131037,0.229,2800.0,2799.4,0.1]
[1763978131240,0.229,2800.0,2799.3,0.5935]
[1763978131439,0.229,2800.0,2799.4,0.5935]
[1763978132167,0.229,2800.0,2799.4,0.4935]
[1763978132329,0.1165,2799.9,2799.2,5.00366866]
[1763978132689,0.229,2800.0,2799.4,0.1]
[1763978132841,0.229,2800.0,2799.5,0.1]
[1763978133172,0.229,2800.0,2799.3,0.4935]
[1763978133173,0.229,2800.0,2799.6,0.4935]
[1763978133465,0.1165,2800.7,2799.9,0.4734]
[1763978133631,0.229,2800.6,2799.9,0.4734]
[1763978133970,0.229,2800.6,2799.9,0.9669]
[1763978134338,0.1165,2800.5,2799.9,0.4734]
[1763978134536,0.229,2800.6,2799.6,0.4935]
[1763978134785,0.1165,2800.7,2799.7,0.4935]
[1763978134968,0.229,2800.6,2799.8,0.1]
[1763978135274,0.229,2800.6,2799.7,0.5935]
[1763978135465,0.229,2800.6,2799.7,5.49716866]
[1763978135665,0.229,2800.6,2799.8,0.1]
[1763978135847,0.229,2800.6,2799.8,0.5935]
[1763978136050,0.90699264,2801.1,2800.5,5.56616866]
[1763978136263,0.233,2801.2,2800.5,5.37706866]
[1763978136510,0.229,2801.0,2800.5,0.4734]
[1763978136986,0.3455,2801.0,2800.3,0.1891]
[1763978137189,0.3455,2801.0,2800.1,1.10329264]
[1763978137487,0.229,2801.0,2800.3,0.1]
[1763978137649,0.1165,2801.2,2800.6,4.90366866]
[1763978137850,0.3455,2801.2,2800.9,0.4847]
[1763978138492,0.0004,2801.3,2800.9,0.4847]
[1763978138796,0.0004,2801.3,2800.5,1.05009126]
[1763978138965,0.0004,2801.3,2801.2,0.681]
[1763978139169,0.0004,2801.3,2801.2,0.781]
[1763978139378,0.0004,2801.3,2801.2,1.2648]
[1763978139579,0.0004,2801.3,2801.2,1.40786586]
[1763978139891,0.0004,2801.3,2801.2,5.88475711]
[1763978140088,0.0004,2801.3,2801.2,6.47323282]
[1763978140454,0.0004,2801.3,2801.2,8.88485282]
[1763978141498,0.0004,2801.3,2801.2,21.12520682]
[1763978141697,0.0004,2801.3,2801.2,17.99558582]
[1763978141895,0.0004,2801.3,2801.2,17.51547682]
[1763978142406,0.0004,2801.3,2801.2,6.47323282]
[1763978142589,0.0004,2801.3,2801.2,13.21561382]
[1763978142756,0.0004,2801.3,2801.2,13.62111782]
[1763978142951,0.002,2801.6,2801.5,0.1]
[1763978143209,0.002,2801.6,2801.5,19.90761142]
[1763978143508,0.002,2801.9,2801.8,14.27281776]
[1763978143657,0.002,2802.8,2802.7,0.1]
[1763978143976,0.002,2802.8,2802.7,0.781]
[1763978144176,0.002,2802.8,2802.7,1.2648]
[1763978144679,0.002,2802.8,2802.7,0.681]
[1763978145079,0.1205,2802.8,2802.4,0.1963]
[1763978145284,0.1205,2802.8,2802.4,0.2963]
[1763978145471,0.1205,2802.8,2802.4,0.7801]
[1763978146156,0.002,2802.8,2802.7,0.4657]
[1763978146656,0.002,2802.8,2802.7,1.0566]
[1763978146858,0.002,2802.8,2802.7,0.9566]
[1763978147057,0.002,2802.8,2802.7,1.26725879]
[1763978149488,0.002,2802.8,2802.7,0.77635879]
[1763978149664,0.002,2802.8,2802.5,0.14299528]
[1763978150059,0.1185,2802.6,2802.5,0.14299528]
[1763978150292,0.002,2802.8,2802.5,0.14299528]
[1763978151094,0.002,2802.8,2802.2,0.7779]
[1763978151402,0.002,2802.8,2802.3,0.24300193]
[1763978151611,0.002,2802.8,2802.3,0.42579139]
[1763978151900,0.002,2802.8,2802.3,0.91669139]
[1763978152064,0.002,2802.8,2802.4,0.4909]
[1763978152270,0.002,2802.8,2802.4,0.5909]
[1763978152492,0.002,2802.8,2802.4,0.4909]
[1763978152701,0.002,2802.8,2802.3,0.24300193]
[1763978152885,0.002,2802.8,2802.3,0.5909]
[1763978153078,0.1205,2802.8,2802.4,0.14300193]
[1763978153296,0.0012,2802.8,2802.4,0.14300193]
[1763978153497,0.0012,2802.8,2802.0,0.6872]
[1763978153701,0.0012,2802.8,2802.2,0.1]
[1763978154409,0.0012,2802.8,2802.3,0.14301011]
[1763978154622,0.1197,2802.8,2802.3,0.14301011]
[1763978154770,0.1185,2802.4,2801.9,0.229]
[1763978154973,0.1185,2802.4,2801.8,0.187]
[1763978154974,0.0012,2802.8,2802.1,0.43002085]
[1763978155229,0.0012,2802.8,2802.3,0.4657]
[1763978155594,0.0012,2802.8,2802.3,1.0566]
[1763978156014,0.0012,2802.8,2802.4,0.5909]
[1763978156223,0.0012,2802.8,2802.4,0.4909]
[1763978156424,0.0012,2802.8,2802.3,0.1]
[1763978156709,0.1185,2802.5,2802.1,0.43002085]
[1763978157108,0.1185,2802.5,2802.1,0.24302085]
[1763978157313,0.1185,2802.5,2802.1,0.92092085]
[1763978158810,0.1185,2802.2,2802.1,0.14302085]
[1763978159054,0.1185,2802.2,2801.9,0.001]
[1763978159263,0.1185,2802.0,2801.9,0.14403465]
[1763978159423,0.1185,2802.7,2801.9,0.9576]
[1763978160336,0.0012,2802.8,2801.9,0.9576]
[1763978160499,0.1185,2802.7,2801.9,0.9576]
[1763978160704,0.0012,2802.8,2802.0,0.4909]
[1763978160904,0.1197,2802.8,2802.1,0.1]
[1763978161912,0.1197,2802.8,2801.9,0.001]
[1763978161913,0.1185,2802.2,2801.9,0.001]
[1763978162139,0.1197,2802.8,2801.9,0.001]
[1763978162318,0.1185,2802.7,2801.9,0.001]
[1763978163040,0.1185,2802.7,2801.9,0.4919]
[1763978163246,0.0012,2802.8,2802.0,0.1]
[1763978163611,0.0012,2802.8,2802.1,0.187]
[1763978164020,0.0012,2802.8,2802.2,0.5909]
[1763978164219,0.0012,2802.8,2802.2,0.4909]
[1763978165106,0.0012,2802.8,2802.3,0.42466416]
[1763978165308,0.0012,2802.8,2802.3,0.56767273]
[1763978165538,0.0012,2802.8,2802.2,0.1]
[1763978165728,0.0012,2802.8,2802.2,0.24301727]
[1763978165942,0.0012,2802.8,2802.3,0.1]
[1763978166323,0.0012,2802.8,2802.4,0.4909]
[1763978166588,0.0012,2802.8,2802.4,0.5909]
[1763978166846,0.0012,2802.8,2802.7,0.4783]
[1763978167410,0.0012,2802.8,2802.7,1.03]
[1763978167648,0.0012,2802.8,2802.7,0.93]
[1763978169015,0.1197,2802.8,2802.4,0.5632867]
[1763978169240,0.1185,2802.7,2802.5,0.14300039]
[1763978170223,0.0012,2802.8,2802.5,0.14300039]
[1763978170821,0.1185,2802.6,2802.2,0.4517]
[1763978171012,0.1185,2802.3,2801.9,0.001]
[1763978171215,0.1185,2802.2,2802.1,0.14302494]
[1763978171411,0.1185,2802.2,2801.9,0.001]
[1763978171664,0.1185,2802.2,2801.9,0.14403312]
[1763978172466,0.1185,2802.6,2801.9,0.24403312]
[1763978172767,0.1185,2802.6,2802.1,0.001]
[1763978173937,0.0012,2802.8,2802.1,0.001]
[1763978174128,0.0012,2802.8,2802.1,0.6359]
[1763978174529,0.0012,2802.8,2802.1,0.7359]
[1763978174760,0.0012,2802.8,2802.3,0.1]
[1763978174960,0.0012,2802.8,2802.7,0.4783]
[1763978175329,0.0012,2802.8,2802.7,0.93]
[1763978176264,0.0012,2802.8,2802.7,1.03]
[1763978176862,0.1197,2802.8,2802.4,0.14300039]
[1763978177061,0.1189,2802.8,2802.4,0.24300039]
[1763978177252,0.1189,2802.8,2802.4,0.69470039]
[1763978177559,0.1189,2802.8,2802.4,0.14300039]
[1763978177765,0.1189,2802.8,2802.3,0.1]
[1763978178246,0.0004,2802.8,2802.3,1.35869264]
[1763978178448,0.0004,2802.8,2802.7,0.4783]
[1763978178977,0.0004,2802.8,2802.7,1.03]
[1763978179572,0.0004,2802.8,2802.7,1.48981363]
[1763978180132,0.0004,2802.8,2802.7,1.03]
[1763978180565,0.0004,2802.8,2802.7,1.17299017]
[1763978182171,0.0004,2802.8,2802.7,4.74097818]
[1763978182755,0.0004,2802.8,2802.7,1.17299017]
[1763978182968,0.1189,2802.8,2802.7,0.14299017]
[1763978183167,0.0004,2802.8,2802.7,0.14299017]
[1763978183469,0.0004,2802.8,2802.7,0.62129017]
[1763978183967,0.1189,2802.8,2802.7,0.14299017]
[1763978184140,0.1189,2802.8,2802.2,0.6807]
[1763978184337,0.1189,2802.8,2802.4,0.1]
[1763978184541,0.1189,2802.8,2802.4,0.14300397]
[1763978184770,0.0004,2802.8,2802.5,0.4517]
[1763978185094,0.0004,2802.8,2802.4,0.24300397]
[1763978185244,0.0004,2802.8,2802.4,0.14300397]
[1763978185245,0.1185,2802.5,2802.4,0.14300397]
[1763978185570,0.1185,2802.5,2802.1,0.1842]
[1763978185871,0.1185,2802.5,2802.2,0.14301982]
[1763978186073,0.237,2802.5,2802.2,0.14301982]
[1763978186378,0.1185,2802.3,2802.2,0.14301982]
[1763978186551,0.1185,2802.3,2802.1,0.001]
[1763978187381,0.0004,2802.8,2802.2,0.93]
[1763978187582,0.0004,2802.8,2802.2,1.03]
[1763978187752,0.0004,2802.8,2802.2,1.25642212]
[1763978188084,0.0004,2802.8,2802.3,0.4517]
[1763978189486,0.0004,2802.8,2802.2,0.32642212]
[1763978189692,0.0004,2802.8,2802.3,0.4517]
[1763978189876,0.0004,2802.8,2802.4,0.1]
[1763978190049,0.0004,2802.8,2802.4,0.001]
[1763978191155,0.0004,2802.8,2802.7,0.4783]
[1763978191792,0.0004,2802.8,2802.5,0.24299221]
[1763978191988,0.1189,2802.8,2802.5,0.14299221]
[1763978192179,0.1189,2802.8,2802.5,0.24299221]
[1763978192792,0.1189,2802.8,2802.5,0.14299221]
[1763978193462,0.1189,2802.8,2802.5,0.24299221]
[1763978193990,0.1189,2802.8,2802.5,0.14299221]
[1763978194664,0.0004,2802.8,2802.7,0.4783]
[1763978195358,0.0004,2802.8,2802.7,0.62130142]
[1763978195554,0.0004,2802.8,2802.7,1.07300142]
[1763978196482,0.0004,2802.8,2802.7,0.62130142]
[1763978196704,0.0004,2802.8,2802.7,0.14300142]
[1763978196908,0.1189,2802.8,2802.7,0.14300142]
[1763978197105,0.1189,2802.8,2802.4,0.001]